bitfinex/quotes_SOLUSD_20241013
["timestamp","ask_amount","ask_price","bid_price","bid_amount"]
[1728804929023,16.4064,146.52,146.45,20.0]
[1728804929240,6.8259,146.5,146.45,20.0]
[1728804933331,6.8259,146.5,146.45,21.36545814]
[1728804933630,6.8255,146.51,146.45,21.36545814]
[1728804937026,6.8255,146.51,146.45,12.76743819]
[1728804937325,6.8255,146.51,146.46,21.365398]
[1728804937530,6.8255,146.51,146.46,20.0]
[1728804937743,23.776884,146.51,146.43,20.0]
[1728804938038,6.8265,146.49,146.43,20.0]
[1728804938926,6.8269,146.48,146.43,20.0]
[1728804939326,6.8269,146.48,146.41,15.37893938]
[1728804939526,23.776884,146.51,146.42,20.0]
[1728804939716,6.8273,146.47,146.41,20.0]
[1728804940332,6.8273,146.47,146.41,31.40198005]
[1728804944127,6.8273,146.47,146.42,11.40198005]
[1728804944335,6.8273,146.47,146.43,20.0]
[1728804944521,30.603784,146.48,146.43,20.0]
[1728804947452,30.603784,146.48,146.41,11.40198005]
[1728804947825,6.8269,146.48,146.42,20.0]
[1728804948147,6.8269,146.48,146.42,32.767703]
[1728804948452,6.8269,146.48,146.42,20.0]
[1728804958262,6.8269,146.48,146.42,32.76766434]
[1728804960349,6.8269,146.48,146.42,31.40198005]
[1728804960854,6.8269,146.48,146.41,11.40198005]
[1728804961339,6.8269,146.48,146.42,20.0]
[1728804964552,6.8269,146.48,146.43,3.46849872]
[1728804967242,13.141,146.49,146.43,3.46849872]
[1728804968862,6.3143,146.49,146.43,3.46849872]
[1728804969063,6.8268,146.48,146.43,3.46849872]
[1728804972569,6.8268,146.48,146.42,20.0]
[1728804972766,6.8268,146.48,146.43,3.46969651]
[1728804972960,6.8268,146.48,146.42,20.0]
[1728804973161,6.8268,146.48,146.43,3.46969731]
[1728804973362,6.8268,146.48,146.42,20.0]
[1728804973777,6.8268,146.48,146.43,3.46999844]
[1728804973981,6.8268,146.48,146.42,20.0]
[1728804974160,6.8268,146.48,146.43,3.46999591]
[1728804974469,6.8278,146.46,146.43,3.47048396]
[1728804974769,40.082984,146.48,146.4,3.47054757]
[1728804974968,6.8274,146.47,146.41,3.47054757]
[1728804975177,6.8274,146.47,146.42,3.47054757]
[1728804975353,6.8274,146.47,146.39,31.40198005]
[1728804975549,6.8274,146.47,146.4,3.47070706]
[1728804975881,6.8274,146.47,146.41,3.47070706]
[1728804976175,6.8274,146.47,146.42,3.47070706]
[1728804976387,6.8274,146.47,146.43,3.47070706]
[1728804976550,6.8274,146.47,146.4,3.47070706]
[1728804976853,6.8274,146.47,146.41,3.47070706]
[1728804977174,6.8274,146.47,146.42,3.47096927]
[1728804977381,6.8274,146.47,146.43,3.47096927]
[1728804977759,6.8274,146.47,146.4,3.47096927]
[1728804978057,6.8274,146.47,146.41,3.47096927]
[1728804978266,6.8274,146.47,146.42,3.47096927]
[1728804978458,6.8274,146.47,146.43,3.47096927]
[1728804978759,6.8274,146.47,146.4,3.47096927]
[1728804978961,6.8274,146.47,146.41,3.47096927]
[1728804979266,6.8274,146.47,146.42,3.47096927]
[1728804979468,6.8274,146.47,146.43,3.47096927]
[1728804979666,6.8274,146.47,146.39,31.40198005]
[1728804979867,6.8274,146.47,146.4,3.47196206]
[1728804980053,6.8274,146.47,146.41,3.47196206]
[1728804980256,6.8274,146.47,146.42,3.47196206]
[1728804980456,6.8274,146.47,146.43,3.47196206]
[1728804980672,6.8274,146.47,146.39,31.40198005]
[1728804980873,6.8274,146.47,146.4,3.47248139]
[1728804981046,6.8274,146.47,146.41,3.47248139]
[1728804981250,6.8274,146.47,146.42,3.47248139]
[1728804981473,6.8274,146.47,146.43,3.47248139]
[1728804981780,6.8274,146.47,146.39,31.40198005]
[1728804981968,6.8274,146.47,146.4,3.47317439]
[1728804982156,6.8274,146.47,146.41,3.47317439]
[1728804982358,6.8274,146.47,146.42,3.47317439]
[1728804982656,6.8274,146.47,146.43,3.47317439]
[1728804982855,6.8274,146.47,146.39,31.40198005]
[1728804983070,6.8274,146.47,146.4,3.47396033]
[1728804983261,6.8274,146.47,146.41,3.47396033]
[1728804983451,6.8274,146.47,146.42,3.47396033]
[1728804983651,6.8274,146.47,146.43,3.47396033]
[1728804983851,6.8274,146.47,146.39,31.40198005]
[1728804984052,6.8274,146.47,146.4,3.47488703]
[1728804984258,6.8274,146.47,146.41,3.47488703]
[1728804984553,40.082984,146.48,146.41,3.47596996]
[1728804984554,6.8279,146.46,146.41,3.47596996]
[1728804984754,6.8279,146.46,146.42,3.47596996]
[1728804985054,6.8279,146.46,146.43,3.47596996]
[1728804985270,6.8279,146.46,146.44,3.47596996]
[1728804985468,6.8279,146.46,146.39,31.40198005]
[1728804985659,6.8279,146.46,146.4,3.47655378]
[1728804985853,6.8279,146.46,146.41,3.47655378]
[1728804986052,6.8279,146.46,146.42,3.47655378]
[1728804986252,6.8282,146.45,146.43,3.47655378]
[1728804986454,6.8282,146.45,146.44,3.47655378]
[1728804986665,30.605084,146.45,146.4,3.47655378]
[1728804986873,30.605084,146.45,146.38,20.0]
[1728804986874,6.8282,146.45,146.41,3.47655378]
[1728804987071,40.082984,146.48,146.42,3.47655378]
[1728804987269,6.8291,146.44,146.38,20.0]
[1728804987480,6.8291,146.44,146.39,3.47609576]
[1728804987783,6.8291,146.44,146.4,3.47609576]
[1728804987982,6.8291,146.44,146.37,20.0]
[1728804988364,6.8291,146.44,146.41,3.47616534]
[1728804992380,6.8283,146.45,146.41,3.47616534]
[1728804995489,6.8283,146.45,146.39,21.36603502]
[1728804995974,6.8283,146.45,146.4,3.47232681]
[1728804996370,6.8283,146.45,146.4,6.94465522]
[1728804996581,6.8283,146.45,146.4,3.47232681]
[1728804997282,6.8283,146.45,146.4,6.94399669]
[1728805003313,6.8283,146.45,146.4,6.94283229]
[1728805004889,6.8283,146.45,146.4,3.47232681]
[1728805005573,6.8283,146.45,146.39,20.0]
[1728805005773,6.8283,146.45,146.4,3.47017567]
[1728805006991,6.8283,146.45,146.4,3.47009146]
[1728805010503,57.150484,146.48,146.4,3.47009146]
[1728805010692,6.8287,146.44,146.4,3.47009146]
[1728805011683,6.8287,146.44,146.39,21.36602835]
[1728805012503,6.8287,146.44,146.39,20.0]
[1728805014194,6.8287,146.44,146.4,3.47045315]
[1728805015002,6.8287,146.44,146.39,20.0]
[1728805015207,6.8287,146.44,146.4,3.47086029]
[1728805015501,6.8287,146.44,146.39,20.0]
[1728805016583,6.8287,146.44,146.4,3.47108762]
[1728805018508,6.8287,146.44,146.4,3.47171067]
[1728805018710,6.8287,146.44,146.39,21.36601347]
[1728805018904,6.8287,146.44,146.4,3.47172894]
[1728805020501,6.8287,146.44,146.38,20.0]
[1728805020701,6.8287,146.44,146.39,3.47252968]
[1728805020888,6.8287,146.44,146.4,3.47252968]
[1728805021088,6.8287,146.44,146.38,20.0]
[1728805021506,6.8287,146.44,146.39,3.47267705]
[1728805021709,6.8287,146.44,146.4,3.47267705]
[1728805021883,6.8287,146.44,146.38,20.0]
[1728805022095,6.8287,146.44,146.39,3.47270371]
[1728805022297,6.8287,146.44,146.4,3.47270371]
[1728805022500,6.8287,146.44,146.38,20.0]
[1728805022699,6.8287,146.44,146.39,3.47289483]
[1728805023002,6.8287,146.44,146.4,3.47289483]
[1728805023309,6.8287,146.44,146.38,20.0]
[1728805023509,6.8287,146.44,146.39,3.47313945]
[1728805023723,6.8287,146.44,146.4,3.47313945]
[1728805023918,6.8287,146.44,146.38,20.0]
[1728805024105,6.8287,146.44,146.39,3.47316405]
[1728805024305,6.8287,146.44,146.4,3.47316405]
[1728805024528,6.8287,146.44,146.38,20.0]
[1728805024903,6.8287,146.44,146.39,3.47345981]
[1728805025228,6.8287,146.44,146.4,3.47345981]
[1728805025408,6.8287,146.44,146.38,20.0]
[1728805025602,6.8287,146.44,146.39,3.47383458]
[1728805025802,6.8287,146.44,146.4,3.47383458]
[1728805026018,6.8287,146.44,146.38,20.0]
[1728805026324,6.8287,146.44,146.39,3.47383458]
[1728805026627,6.8287,146.44,146.4,3.47383458]
[1728805026923,6.8287,146.44,146.38,20.0]
[1728805027125,6.8287,146.44,146.39,3.47423459]
[1728805027309,6.8287,146.44,146.4,3.47423459]
[1728805027509,6.8287,146.44,146.38,20.0]
[1728805027709,6.8287,146.44,146.39,3.47469718]
[1728805028023,6.8284,146.45,146.4,3.47469718]
[1728805028328,6.8279,146.46,146.4,21.36601299]
[1728805034632,6.8282,146.45,146.4,21.36601299]
[1728805041111,6.8282,146.45,146.4,20.0]
[1728805041735,6.8288,146.44,146.38,11.40198005]
[1728805042339,6.8288,146.44,146.39,20.0]
[1728805043416,6.8284,146.45,146.39,20.0]
[1728805043919,57.150484,146.48,146.39,20.0]
[1728805043920,57.150484,146.48,146.4,21.365944]
[1728805044224,6.8273,146.47,146.42,20.0]
[1728805045639,6.8273,146.47,146.4,11.40198005]
[1728805045840,6.8273,146.47,146.41,20.0]
[1728805046534,6.8278,146.46,146.41,20.0]
[1728805048736,6.8278,146.46,146.39,31.40198005]
[1728805049344,6.8284,146.45,146.39,20.0]
[1728805051142,6.8284,146.45,146.39,11.40198005]
[1728805051347,6.8284,146.45,146.4,20.0]
[1728805057460,6.8279,146.46,146.41,1.36593465]
[1728805058341,6.8279,146.46,146.41,12.7679147]
[1728805059646,6.8279,146.46,146.41,11.40198005]
[1728805060173,6.8279,146.46,146.4,11.40198005]
[1728805060352,6.8279,146.46,146.41,20.0]
[1728805074650,6.8279,146.46,146.41,21.36584028]
[1728805076487,6.8279,146.46,146.41,20.0]
[1728805078857,6.8279,146.46,146.38,20.0]
[1728805079073,6.8279,146.46,146.4,20.0]
[1728805080986,6.8292,146.43,146.38,20.0]
[1728805081278,6.8292,146.43,146.36,31.40198005]
[1728805082384,6.8292,146.43,146.37,11.40198005]
[1728805082560,6.8292,146.43,146.38,11.40198005]
[1728805082885,6.8292,146.43,146.39,20.0]
[1728805083261,6.8289,146.44,146.39,20.0]
[1728805083478,6.8289,146.44,146.36,20.0]
[1728805083785,6.8289,146.44,146.39,31.40198005]
[1728805083962,6.8289,146.44,146.4,1.3659547]
[1728805084673,13.1834,146.45,146.4,1.3659547]
[1728805085184,13.1834,146.45,146.39,31.40198005]
[1728805088282,13.1834,146.45,146.4,1.36595873]
[1728805088472,13.1834,146.45,146.41,3.47627648]
[1728805088672,13.1834,146.45,146.42,3.47627648]
[1728805088887,13.1834,146.45,146.4,1.36595873]
[1728805089074,13.1834,146.45,146.41,3.4762782]
[1728805089284,13.1834,146.45,146.42,3.4762782]
[1728805089583,13.1834,146.45,146.4,1.36595873]
[1728805089789,13.1834,146.45,146.41,3.47631922]
[1728805089993,13.1834,146.45,146.42,3.47631922]
[1728805090285,13.1834,146.45,146.4,1.36595873]
[1728805090488,13.1834,146.45,146.41,3.47629411]
[1728805090783,13.1834,146.45,146.42,3.47629411]
[1728805090970,13.1834,146.45,146.4,1.36595873]
[1728805091173,13.1834,146.45,146.41,3.47629572]
[1728805091385,13.1834,146.45,146.42,3.47629572]
[1728805091586,13.1834,146.45,146.39,31.40198005]
[1728805091785,13.1834,146.45,146.4,3.4764045]
[1728805091971,13.1834,146.45,146.41,3.4764045]
[1728805092171,13.1834,146.45,146.42,3.4764045]
[1728805092371,6.8288,146.44,146.39,31.40198005]
[1728805092563,6.8288,146.44,146.4,3.47654494]
[1728805092887,6.8288,146.44,146.41,3.47654494]
[1728805093185,6.8288,146.44,146.39,31.40198005]
[1728805093396,6.8288,146.44,146.4,3.47677491]
[1728805093594,6.8288,146.44,146.41,3.47677491]
[1728805093775,6.8288,146.44,146.39,31.40198005]
[1728805094289,6.8288,146.44,146.4,3.4767489]
[1728805094490,6.8288,146.44,146.41,3.4767489]
[1728805094685,6.8288,146.44,146.39,31.40198005]
[1728805094879,6.8288,146.44,146.4,3.47682311]
[1728805095191,6.8288,146.44,146.41,3.47682311]
[1728805095357,6.8288,146.44,146.39,31.40198005]
[1728805095561,6.8288,146.44,146.4,3.47685788]
[1728805095758,6.8288,146.44,146.41,3.47685788]
[1728805095979,6.8288,146.44,146.39,31.40198005]
[1728805096182,6.8288,146.44,146.4,3.47685788]
[1728805096396,6.8288,146.44,146.41,3.47685788]
[1728805096558,6.8288,146.44,146.39,31.40198005]
[1728805096762,6.8288,146.44,146.4,3.47668049]
[1728805096985,6.8288,146.44,146.41,3.47668049]
[1728805097196,6.8288,146.44,146.39,31.40198005]
[1728805097503,6.8288,146.44,146.4,3.47652431]
[1728805097704,6.8288,146.44,146.41,3.47652431]
[1728805098009,6.8288,146.44,146.43,0.2124032]
[1728805128456,19.88635777,146.48,146.43,0.2124032]
[1728805128629,16.3061,146.48,146.43,11.61438325]
[1728805128830,27.02095777,146.5,146.43,11.61438325]
[1728805129525,23.4407,146.5,146.44,3.4772567]
[1728805129724,6.8271,146.48,146.43,11.61438325]
[1728805129943,6.8271,146.48,146.44,3.47722084]
[1728805130144,6.8271,146.48,146.43,11.61438325]
[1728805130444,6.8264,146.49,146.44,16.24400261]
[1728805130645,6.8264,146.49,146.45,3.47636694]
[1728805130835,22.7576,146.52,146.46,16.24323656]
[1728805131049,22.7576,146.52,146.46,12.76745073]
[1728805131345,6.8251,146.52,146.47,12.76732653]
[1728805131939,6.8251,146.52,146.47,11.40198005]
[1728805133149,6.8251,146.52,146.46,11.40198005]
[1728805137356,6.8246,146.53,146.47,11.40198005]
[1728805139349,6.825,146.52,146.47,11.40198005]
[1728805146943,6.8246,146.53,146.48,11.40198005]
[1728805147141,6.8246,146.53,146.49,12.76711924]
[1728805147863,13.1999,146.54,146.49,11.40198005]
[1728805148540,13.1999,146.54,146.5,11.40198005]
[1728805149056,23.776884,146.55,146.51,11.40198005]
[1728805149255,30.600584,146.55,146.51,11.40198005]
[1728805149569,6.8237,146.55,146.51,11.40198005]
[1728805150467,22.7134,146.56,146.51,11.40198005]
[1728805152134,23.776884,146.55,146.51,11.40198005]
[1728805154337,30.600484,146.55,146.51,11.40198005]
[1728805156762,30.600484,146.55,146.52,20.0]
[1728805159677,6.8236,146.55,146.52,20.0]
[1728805160677,22.7134,146.56,146.52,20.0]
[1728805164786,22.7134,146.56,146.52,21.36483377]
[1728805168881,22.7134,146.56,146.52,20.0]
[1728805173895,6.8232,146.56,146.52,20.0]
[1728805179689,6.8239,146.55,146.52,20.0]
[1728805179891,6.824,146.54,146.51,20.0]
[1728805181904,6.824,146.54,146.5,20.0]
[1728805182105,39.079684,146.57,146.5,20.0]
[1728805182402,6.8245,146.53,146.5,20.0]
[1728805184986,39.079684,146.57,146.5,20.0]
[1728805185192,23.776884,146.53,146.5,20.0]
[1728805191094,23.776884,146.53,146.51,3.47344927]
[1728805191297,23.776884,146.53,146.5,20.0]
[1728805191534,23.776884,146.53,146.51,3.47425915]
[1728805191707,23.776884,146.53,146.5,20.0]
[1728805191915,23.776884,146.53,146.51,3.47425995]
[1728805192303,23.776884,146.53,146.5,20.0]
[1728805192507,23.776884,146.53,146.51,3.47470051]
[1728805192727,23.776884,146.53,146.5,20.0]
[1728805193026,23.776884,146.53,146.51,3.47470051]
[1728805193233,23.776884,146.53,146.5,20.0]
[1728805193413,23.776884,146.53,146.51,3.474999]
[1728805193599,23.776884,146.53,146.5,20.0]
[1728805193800,23.776884,146.53,146.51,3.4749982]
[1728805194113,23.776884,146.53,146.5,20.0]
[1728805194313,23.776884,146.53,146.51,3.47502519]
[1728805194521,23.776884,146.53,146.5,20.0]
[1728805194721,23.776884,146.53,146.51,3.47532079]
[1728805194920,23.776884,146.53,146.5,20.0]
[1728805195122,23.776884,146.53,146.51,3.47531998]
[1728805195714,23.776884,146.53,146.5,20.0]
[1728805196105,23.776884,146.53,146.51,3.47560329]
[1728805196302,23.776884,146.53,146.5,20.0]
[1728805196508,23.776884,146.53,146.51,3.47558094]
[1728805196731,23.776884,146.53,146.5,20.0]
[1728805197033,23.776884,146.53,146.51,3.47560794]
[1728805197200,23.776884,146.53,146.52,3.47560794]
[1728805198411,15.3028,146.57,146.52,3.47560794]
[1728805198608,15.3028,146.57,146.5,20.0]
[1728805198609,23.776884,146.54,146.5,20.0]
[1728805198812,23.776884,146.54,146.51,3.47537978]
[1728805199031,23.776884,146.54,146.52,3.47537978]
[1728805199211,23.776884,146.54,146.5,20.0]
[1728805199535,23.776884,146.54,146.51,3.47532203]
[1728805199706,23.776884,146.54,146.52,3.47532203]
[1728805199903,23.776884,146.54,146.51,20.0]
[1728805200221,23.776884,146.54,146.52,3.47532059]
[1728805200415,23.776884,146.54,146.51,20.0]
[1728805200726,23.776884,146.54,146.52,3.47529373]
[1728805200929,23.776884,146.54,146.51,20.0]
[1728805201114,23.776884,146.54,146.52,3.47529453]
[1728805201313,15.3028,146.57,146.51,20.0]
[1728805201314,6.8232,146.56,146.51,20.0]
[1728805201625,23.776884,146.55,146.52,3.47516379]
[1728805201938,23.776884,146.55,146.51,20.0]
[1728805202110,23.776884,146.55,146.52,3.4751646]
[1728805202434,23.776884,146.55,146.51,11.40198005]
[1728805202606,23.776884,146.55,146.52,23.47518407]
[1728805202806,23.776884,146.55,146.52,20.0]
[1728805204624,15.3028,146.57,146.52,20.0]
[1728805204835,22.1256,146.57,146.52,20.0]
[1728805205112,22.1256,146.57,146.53,3.47468065]
[1728805205312,22.1256,146.57,146.52,20.0]
[1728805205519,22.1256,146.57,146.53,3.47441598]
[1728805205726,22.1256,146.57,146.52,20.0]
[1728805205931,22.1256,146.57,146.53,3.47441678]
[1728805206140,22.1256,146.57,146.52,11.40198005]
[1728805206435,15.3028,146.57,146.53,14.87618324]
[1728805206605,15.3028,146.57,146.53,11.40198005]
[1728805209730,6.8219,146.59,146.54,11.40198005]
[1728805209940,19.49305777,146.6,146.5,15.8244]
[1728805209941,15.9128,146.6,146.55,11.40198005]
[1728805211436,22.7343,146.6,146.55,11.40198005]
[1728805212217,22.7343,146.6,146.55,20.0]
[1728805212417,6.8219,146.59,146.55,20.0]
[1728805213231,6.8219,146.59,146.54,20.0]
[1728805220156,23.776884,146.59,146.54,20.0]
[1728805220327,6.8222,146.58,146.53,20.0]
[1728805220526,6.8222,146.58,146.53,31.40198005]
[1728805230260,30.598784,146.59,146.53,31.40198005]
[1728805230756,30.598784,146.59,146.55,20.0]
[1728805238662,30.598784,146.59,146.54,11.40198005]
[1728805238855,30.598784,146.59,146.55,20.0]
[1728805240847,30.598784,146.59,146.51,20.0]
[1728805241057,30.598784,146.59,146.54,20.0]
[1728805242338,23.776884,146.59,146.54,20.0]
[1728805245660,23.776884,146.59,146.54,11.40198005]
[1728805245869,23.776884,146.59,146.55,20.0]
[1728805249067,22.7341,146.6,146.55,20.0]
[1728805249271,23.776884,146.6,146.56,23.4701838]
[1728805249463,23.776884,146.6,146.56,20.0]
[1728805251254,23.776884,146.6,146.54,11.40198005]
[1728805251455,23.776884,146.6,146.55,23.47078138]
[1728805251661,23.776884,146.6,146.56,23.47078138]
[1728805251859,23.776884,146.6,146.56,20.0]
[1728805252276,23.776884,146.6,146.55,20.0]
[1728805252451,23.776884,146.6,146.56,3.47105108]
[1728805252653,23.776884,146.6,146.55,20.0]
[1728805252859,23.776884,146.6,146.56,3.47105108]
[1728805253172,23.776884,146.6,146.55,20.0]
[1728805253379,23.776884,146.6,146.56,3.47128367]
[1728805253588,23.776884,146.6,146.55,20.0]
[1728805253785,23.776884,146.6,146.56,3.47128177]
[1728805254071,23.776884,146.6,146.55,20.0]
[1728805254285,23.776884,146.6,146.56,3.47157917]
[1728805254571,23.776884,146.6,146.55,20.0]
[1728805254875,23.776884,146.6,146.56,3.47157917]
[1728805255056,23.776884,146.6,146.55,20.0]
[1728805255356,23.776884,146.6,146.56,3.47157917]
[1728805255559,23.776884,146.6,146.55,20.0]
[1728805255560,23.776884,146.6,146.57,3.47192229]
[1728805255758,23.776884,146.6,146.55,20.0]
[1728805255960,23.776884,146.6,146.56,3.47201494]
[1728805256172,23.776884,146.6,146.55,20.0]
[1728805256358,23.776884,146.6,146.56,3.47184861]
[1728805256577,23.776884,146.6,146.55,20.0]
[1728805256875,23.776884,146.6,146.56,3.4718624]
[1728805257059,23.776884,146.6,146.55,20.0]
[1728805257262,23.776884,146.6,146.56,3.47181007]
[1728805257560,23.776884,146.6,146.55,20.0]
[1728805257763,23.776884,146.6,146.56,3.47160094]
[1728805257968,23.776884,146.6,146.55,20.0]
[1728805258276,23.776884,146.6,146.56,3.47160094]
[1728805258483,23.776884,146.6,146.57,3.47160094]
[1728805258699,23.776884,146.6,146.55,20.0]
[1728805258873,23.776884,146.6,146.56,3.47130227]
[1728805259180,23.776884,146.6,146.57,3.47130227]
[1728805259380,23.776884,146.6,146.55,20.0]
[1728805259559,23.776884,146.6,146.56,3.47102352]
[1728805259762,23.776884,146.6,146.55,20.0]
[1728805260070,23.776884,146.6,146.56,3.47102513]
[1728805260274,6.8216,146.6,146.55,20.0]
[1728805260475,6.8216,146.6,146.56,3.47115637]
[1728805260650,6.8216,146.6,146.55,20.0]
[1728805261081,6.8216,146.6,146.56,3.47115637]
[1728805261282,6.8216,146.6,146.55,20.0]
[1728805261467,6.8216,146.6,146.56,3.47110919]
[1728805261664,6.8216,146.6,146.55,20.0]
[1728805261861,6.8216,146.6,146.56,3.47110839]
[1728805262062,23.776884,146.61,146.55,20.0]
[1728805262265,6.8218,146.59,146.56,3.47110839]
[1728805262477,6.8218,146.59,146.54,20.0]
[1728805262670,6.8218,146.59,146.55,3.47104579]
[1728805262861,6.8218,146.59,146.56,3.47104579]
[1728805263084,30.599184,146.58,146.51,20.0]
[1728805263269,30.599184,146.58,146.53,20.0]
[1728805263589,30.599184,146.58,146.54,3.47104276]
[1728805263768,30.598684,146.59,146.55,3.47104276]
[1728805263967,30.598684,146.59,146.56,3.47104276]
[1728805264272,30.598684,146.59,146.55,20.0]
[1728805264481,23.776884,146.59,146.56,3.47093313]
[1728805264691,23.776884,146.59,146.55,20.0]
[1728805264986,23.776884,146.59,146.56,3.47093313]
[1728805265183,23.776884,146.59,146.55,20.0]
[1728805265399,23.776884,146.59,146.56,3.47089026]
[1728805265687,23.776884,146.59,146.55,20.0]
[1728805265989,23.776884,146.59,146.56,3.47089107]
[1728805266175,23.776884,146.59,146.55,20.0]
[1728805266375,23.776884,146.59,146.56,3.47090042]
[1728805266566,23.776884,146.59,146.55,20.0]
[1728805266769,23.776884,146.59,146.56,3.47090042]
[1728805266976,23.776884,146.59,146.55,20.0]
[1728805267289,23.776884,146.59,146.56,3.47090042]
[1728805267466,23.776884,146.59,146.56,3.47095704]
[1728805267781,23.776884,146.59,146.55,20.0]
[1728805267989,23.776884,146.59,146.56,3.47096726]
[1728805268174,23.776884,146.59,146.55,20.0]
[1728805268481,23.776884,146.59,146.56,3.47104855]
[1728805268692,23.776884,146.59,146.55,20.0]
[1728805268875,23.776884,146.59,146.56,3.47105267]
[1728805269073,23.776884,146.59,146.47,12.68437055]
[1728805269283,6.8232,146.56,146.5,3.4717862]
[1728805269592,6.8232,146.56,146.51,3.4717862]
[1728805269791,6.8232,146.56,146.52,3.4717862]
[1728805269995,23.776884,146.55,146.53,3.4717862]
[1728805270168,23.776884,146.55,146.5,11.40198005]
[1728805270479,23.776884,146.55,146.51,23.47164601]
[1728805270664,23.776884,146.55,146.52,3.47164601]
[1728805270994,30.600884,146.55,146.53,3.47164601]
[1728805271206,30.600884,146.55,146.48,14.87361284]
[1728805271207,6.824,146.54,146.48,14.87361284]
[1728805271378,6.824,146.54,146.49,3.47163279]
[1728805271694,6.824,146.54,146.5,3.47163279]
[1728805271890,6.824,146.54,146.51,3.47163279]
[1728805272079,6.824,146.54,146.48,11.40198005]
[1728805272397,6.824,146.54,146.49,3.47074863]
[1728805272581,6.824,146.54,146.5,3.47074863]
[1728805272781,6.824,146.54,146.51,3.47074863]
[1728805273103,6.824,146.54,146.48,11.40198005]
[1728805273268,6.824,146.54,146.49,3.46971475]
[1728805273466,6.824,146.54,146.5,3.46971475]
[1728805273669,6.824,146.54,146.49,20.0]
[1728805273871,6.824,146.54,146.5,3.46892071]
[1728805274068,6.824,146.54,146.49,20.0]
[1728805274294,23.776884,146.53,146.5,3.46892071]
[1728805274469,23.776884,146.53,146.49,20.0]
[1728805274669,23.776884,146.53,146.5,3.46811821]
[1728805274876,23.776884,146.53,146.49,20.0]
[1728805275097,23.776884,146.53,146.5,3.46811409]
[1728805278198,23.776884,146.53,146.49,20.0]
[1728805278404,23.776884,146.53,146.5,3.46595179]
[1728805278900,23.776884,146.53,146.49,20.0]
[1728805279800,6.8253,146.52,146.45,11.40198005]
[1728805279978,6.8253,146.52,146.46,3.46564547]
[1728805280686,23.776884,146.51,146.45,11.40198005]
[1728805281012,23.776884,146.51,146.46,20.0]
[1728805281301,6.8255,146.51,146.46,20.0]
[1728805282508,6.826,146.5,146.43,20.2124032]
[1728805282704,6.8256,146.51,146.45,31.40198005]
[1728805282880,23.776884,146.5,146.45,31.40198005]
[1728805283790,23.776884,146.5,146.44,11.40198005]
[1728805284109,23.776884,146.5,146.45,20.0]
[1728805287007,23.776884,146.5,146.43,20.2124032]
[1728805287309,23.776884,146.5,146.45,20.0]
[1728805292704,6.826,146.5,146.45,20.0]
[1728805292912,23.776884,146.51,146.43,20.2124032]
[1728805293916,6.8264,146.49,146.43,20.2124032]
[1728805296216,6.8268,146.48,146.43,0.2124032]
[1728805296427,6.8268,146.48,146.43,20.2124032]
[1728805296718,6.8268,146.48,146.43,0.2124032]
[1728805300899,6.8268,146.48,146.43,20.2124032]
[1728805305095,23.776884,146.47,146.43,0.2124032]
[1728805317824,23.776884,146.47,146.43,20.2124032]
[1728805323328,23.776884,146.47,146.44,3.46793265]
[1728805324020,23.776884,146.47,146.43,20.2124032]
[1728805324734,13.3134,146.49,146.44,3.46926722]
[1728805324909,23.776884,146.48,146.44,3.46926722]
[1728805325438,23.776884,146.48,146.43,20.2124032]
[1728805325609,23.776884,146.48,146.44,3.47082301]
[1728805327012,23.776884,146.46,146.44,3.47082301]
[1728805328318,23.776884,146.46,146.43,0.2124032]
[1728805328319,6.8278,146.46,146.43,0.2124032]
[1728805329220,23.776884,146.47,146.43,0.2124032]
[1728805329415,30.604384,146.47,146.43,0.2124032]
[1728805330828,30.604384,146.47,146.43,20.2124032]